Workbook

Sheet Homepage
B7: Fertiliser Composition V1.2 - Reference List
B9: © Copyright 2023 by The Primary Industries Climate Challenge Centre Limited. All rights reserved. No part of the 'Fertiliser Composition - Reference List' may be reproduced, stored in a retrieval system, or transmitted in any form or by any means, electronic, mechanical, photocopying, recording, or otherwise, without the prior permission of The Primary Industries Climate Challenge Centre.
B11: Notes:
B12: This list was developed by the University of Melbourne and the Primary Industries Climate Challenge Centre. It is intended for use in grain and horticulture enterprises. This tool may not report an accurate, complete or applicable for your particular needs. The accuracy of recorded data in this tool is highly dependent on the quality and accuracy of the commercial source of information (References available). For guidance on obtaining accurate data and how to correctly enter it into the calculator please refer to the instructions below. Data used to generate a carbon account should be representative of the enterprise (based on an average year or an average across multiple years). For an accurate emissions intensity value a stable, farm production system is required.
B17: Disclaimer:
B18: This disclaimer governs the use of the calculator and results. Professional care has been taken to ensure the accuracy of all the calculations. Integrity Ag & Environment do not warrant or guarantee the accuracy of these data or the results developed using them. The information provided here must not be relied on as an alternative to professional advice from an appropriately qualified professional. If you have specific questions about any data or results contained in this calculator you should consult an appropriately qualified professional. Results from herd performance data must be understood to vary with seasonal and natural conditions, sometimes resulting in large variations between systems. Calculations and estimates from this calculator must be considered indicative of a system with the precise characteristics of the data input to the calculator, to the level of accuracy governed by the feed intake, manure production and emission estimation methods used. The developers do not represent, warrant, undertake or guarantee that the use of results from this calculator will lead to any particular outcome or result. The results from the calculator are presented solely for informational purposes.
B21: How to use the filter:
B23: Step 1. Firstly, select "Enable Macros" when oppening the file. Then establish the fertiliser blend that's being applied within your farm property
C24: The total amount of each fertiliser being used and its corresponding composition
C25: This information is available in the Brochure or label of the commercial product
B27: Step 2. Write the name in the white writing box in the "Search tool" tab
B50: Step 3. Select the blend that aligns to your own fertiliser.
C51: In some cases, the products that are listed here may vary between regions
C52: You will notice that the columns "Non-Urea Nitrogen" "Urea" "P(%)" "K(%)" and S(%)
C53: will automatically calculate the fraction of the element composition for that specific blend under "Fertiliser type"
B57: Step 4. Under "Fertiliser type" please select the product that was identified in the "Search Tool" tab to estimate the amount applied on your farm.
C58: The table below is an example on how to estimate the amount that should be filled in the "Data - input" in the G-GAFV10.9 and H-GAFv1.46 calculators
B60: Fertiliser type | D60: Total Nitrogen | E60: Non-Urea Nitrogen | F60: Urea Nitrogen | G60: P | H60: K | I60: S | J60: Rate Range (kg/ha)
B61: 75% MAP 25% MOP | D61: =(VLOOKUP($B$61,Table[],3,FALSE))*$J$61 -> 4.2 | E61: =(VLOOKUP($B$61,Table[],5,FALSE))*$J$61 -> 4.125 | F61: =(VLOOKUP($B$61,Table[],7,FALSE))*$J$61 -> 0.02436 | G61: =(VLOOKUP($B$61,Table[],9,FALSE))*$J$61 -> 8.44 | H61: =(VLOOKUP($B$61,Table[],10,FALSE))*$J$61 -> 6.25 | I61: =(VLOOKUP($B$61,Table[],11,FALSE))*$J$61 -> 0 | J61: 50
B66: Step 5. Finally, please fill the Data input - crops tab in your G-GAFV10.9 and H-GAFV1.46 as depicted below.

Sheet Search tool
A3: Please type the name here: | C3: MAP
A8: Fertiliser Type | B8: Unit | C8: N total Nitrogen (%) | D8: N total Control | E8: Non-Urea Nitrogen | F8: Non-Urea Nitrogen (%) | G8: Urea | H8: Urea (%) | I8: P (%) | J8: K (%) | K8: S (%) | L8: Source link
A9: 42% Gran-Am 58% Urea | B9: T/ha | C9: =35.1/100 -> 0.351 | D9: =Table[[#This Row],[Non-Urea Nitrogen]]+Table[[#This Row],[Urea]] -> 0.376 | E9: =Table[[#This Row],[Non-Urea Nitrogen (%)]]*$P$11 -> 0.1092 | F9: 0.42 | G9: =Table[[#This Row],[Urea (%)]]*$P$20 -> 0.2668 | H9: 0.58 | I9: 0 | J9: 0 | K9: 0.1008 | O9: Inorganic Nitrogen Sources | P9: Nitrogen content (%) | Q9: Reference
A10: 43% MAP TE 57% Urea | B10: T/ha | C10: 0.3095 | D10: =Table[[#This Row],[Non-Urea Nitrogen]]+Table[[#This Row],[Urea]] -> 0.3095 | E10: =Table[[#This Row],[Non-Urea Nitrogen (%)]]*$P$15 -> 0.0473 | F10: 0.43 | G10: =Table[[#This Row],[Urea (%)]]*$P$20 -> 0.2622 | H10: 0.57 | I10: 0.0933 | J10: 0 | K10: 0.0133 | O10: Ammonium Nitrate (NH4NO3) | P10: =34/100 -> 0.34 | Q10: European Comission. EU Agricultural Markets Briefs (2019)
A11: 50% Granulock Z 50% MOP - Ameliorant | B11: T/ha | C11: 0.055 | D11: =Table[[#This Row],[Non-Urea Nitrogen]]+Table[[#This Row],[Urea]] -> 0.055 | E11: =Table[[#This Row],[Non-Urea Nitrogen (%)]]*$P$15 -> 0.055 | F11: 0.5 | G11: =Table[[#This Row],[Urea (%)]]*$P$20 -> 0 | H11: 0 | I11: 0.105 | J11: 0.25 | K11: 0.023 | L11: Granulock Z Nutrient Advantage | O11: Ammonium Sulfate (NH4)2SO4 | P11: =26/100 -> 0.26
A12: 50% Granulock Z 50% Muriate of Potash | B12: T/ha | C12: 0.055 | D12: =Table[[#This Row],[Non-Urea Nitrogen]]+Table[[#This Row],[Urea]] -> 0.0638 | E12: =Table[[#This Row],[Non-Urea Nitrogen (%)]]*$P$15 -> 0.0638 | F12: 0.58 | G12: =Table[[#This Row],[Urea (%)]]*$P$20 -> 0 | H12: 0 | I12: 0.105 | J12: 0.25 | K12: 0.023 | L12: Granulock Z Nutrient Advantage | O12: Anhydrous ammonia (NH3) | P12: =82/100 -> 0.82
A13: 50% MAP 50% SOA | B13: T/ha | C13: 0.155 | D13: =Table[[#This Row],[Non-Urea Nitrogen]]+Table[[#This Row],[Urea]] -> 0.16 | E13: =(Table[[#This Row],[Non-Urea Nitrogen (%)]]*$P$19)+(Table[[#This Row],[Non-Urea Nitrogen (%)]]*$P$15) -> 0.16 | F13: 0.5 | G13: =Table[[#This Row],[Urea (%)]]*$P$20 -> 0 | H13: 0 | I13: 0.1095 | J13: 0 | K13: 0.1275 | L13: MountCompass Fertilisers Blends | O13: Calcium Nitrate (Ca(NO3)2 | P13: =15.5/100 -> 0.155
A14: 50% MAP TE 50% Urea | B14: T/ha | C14: 0.28 | D14: =Table[[#This Row],[Non-Urea Nitrogen]]+Table[[#This Row],[Urea]] -> 0.285 | E14: =Table[[#This Row],[Non-Urea Nitrogen (%)]]*$P$15 -> 0.055 | F14: 0.5 | G14: =Table[[#This Row],[Urea (%)]]*$P$20 -> 0.23 | H14: 0.5 | I14: 0.1095 | J14: 0 | K14: 0.0075 | L14: MountCompass Fertilisers Blends | O14: (DAP) Diammonium Phosphate (NH4)2HP04 | P14: =18/100 -> 0.18
A15: 50% Urea & 50% SOA | B15: T/ha | C15: 0.335 | D15: =Table[[#This Row],[Non-Urea Nitrogen]]+Table[[#This Row],[Urea]] -> 0.335 | E15: =Table[[#This Row],[Non-Urea Nitrogen (%)]]*$P$19 -> 0.105 | F15: 0.5 | G15: =Table[[#This Row],[Urea (%)]]*$P$20 -> 0.23 | H15: 0.5 | I15: 0 | J15: 0 | K15: 0.12 | L15: MountCompass Fertilisers Blends | O15: (MAP) Monoammonium Phosphate (NH4)H2PO4 | P15: =11/100 -> 0.11
A16: 50% Urea 50% GranAm | B16: T/ha | C16: 0.33 | D16: =Table[[#This Row],[Non-Urea Nitrogen]]+Table[[#This Row],[Urea]] -> 0.36 | E16: =Table[[#This Row],[Non-Urea Nitrogen (%)]]*$P$11 -> 0.13 | F16: 0.5 | G16: =Table[[#This Row],[Urea (%)]]*$P$20 -> 0.23 | H16: 0.5 | I16: 0 | J16: 0 | K16: 0.12 | O16: Nitrogen (Organic) | P16: =12/100 -> 0.12 | Q16: (IPNI, 2019)
A17: 50% Urea 50% MOP | B17: T/ha | C17: 0.23 | D17: =Table[[#This Row],[Non-Urea Nitrogen]]+Table[[#This Row],[Urea]] -> 0.23 | E17: =Table[[#This Row],[Non-Urea Nitrogen (%)]]*0 -> 0 | F17: =Table[[#This Row],[N total Nitrogen (%)]]-Table[[#This Row],[Urea]] -> 0 | G17: =Table[[#This Row],[Urea (%)]]*$P$20 -> 0.23 | H17: 0.5 | I17: 0 | J17: 0.25 | K17: 0 | L17: MountCompass Fertilisers Blends | O17: Nitrate (NO3) | P17: =22.5/100 -> 0.225 | Q17: (LTD, 2017)
A18: 60% MAP TE 40% Urea | B18: T/ha | C18: 0.24 | D18: =Table[[#This Row],[Non-Urea Nitrogen]]+Table[[#This Row],[Urea]] -> 0.25 | E18: =Table[[#This Row],[Non-Urea Nitrogen (%)]]*$P$15 -> 0.066 | F18: 0.6 | G18: =Table[[#This Row],[Urea (%)]]*$P$20 -> 0.184 | H18: 0.4 | I18: 0.1302 | J18: 0 | K18: 0.0186 | O18: Potassium Nitrate (KNO3) | P18: =13/100 -> 0.13
A19: 60% Urea 40% SOA | B19: T/ha | C19: 0.36 | D19: =Table[[#This Row],[Non-Urea Nitrogen]]+Table[[#This Row],[Urea]] -> 0.36 | E19: =Table[[#This Row],[Non-Urea Nitrogen (%)]]*$P$19 -> 0.084 | F19: 0.4 | G19: =Table[[#This Row],[Urea (%)]]*$P$20 -> 0.276 | H19: 0.6 | I19: 0 | J19: 0 | K19: 0.096 | O19: (SOA) Sulphate of Ammonia | P19: =21/100 -> 0.21
A20: 63% UreaPlus 37% MOP | B20: T/ha | C20: 0.29 | D20: =Table[[#This Row],[Non-Urea Nitrogen]]+Table[[#This Row],[Urea]] -> 0.2898 | E20: =Table[[#This Row],[Non-Urea Nitrogen (%)]]*0 -> 0 | F20: 0 | G20: =Table[[#This Row],[Urea (%)]]*$P$20 -> 0.2898 | H20: 0.63 | I20: 0 | J20: 0.1875 | K20: 0.055125 | O20: Urea (H2NCONH2) | P20: =46/100 -> 0.46
A21: 66% Urea 12% MAP 22% MOP | B21: T/ha | C21: 0.316 | D21: =Table[[#This Row],[Non-Urea Nitrogen]]+Table[[#This Row],[Urea]] -> 0.3168 | E21: =Table[[#This Row],[Non-Urea Nitrogen (%)]]*$P$15 -> 0.0132 | F21: 0.12 | G21: =Table[[#This Row],[Urea (%)]]*$P$20 -> 0.3036 | H21: 0.66 | I21: 0.026 | J21: 0.11 | K21: 0
A22: 66% Urea 21% Maxam 13% MOP | B22: T/ha | C22: 0.3477 | D22: =Table[[#This Row],[Non-Urea Nitrogen]]+Table[[#This Row],[Urea]] -> 0.3582 | E22: =Table[[#This Row],[Non-Urea Nitrogen (%)]]*$P$11 -> 0.0546 | F22: 0.21 | G22: =Table[[#This Row],[Urea (%)]]*$P$20 -> 0.3036 | H22: 0.66 | I22: 0 | J22: 0.065 | K22: 0.05131
A23: 67% MAPZ2 33% SOP | B23: Kg/ha | C23: 0.067 | D23: =Table[[#This Row],[Non-Urea Nitrogen]]+Table[[#This Row],[Urea]] -> 0.0737 | E23: =Table[[#This Row],[Non-Urea Nitrogen (%)]]*$P$15 -> 0.0737 | F23: 0.67 | G23: =Table[[#This Row],[Urea (%)]]*$P$20 -> 0 | H23: 0 | I23: 0.146 | J23: 0.138 | K23: 0.07
A24: 70% MAP 30% MOP | B24: T/ha | C24: 0.07 | D24: =Table[[#This Row],[Non-Urea Nitrogen]]+Table[[#This Row],[Urea]] -> 0.077 | E24: =Table[[#This Row],[Non-Urea Nitrogen (%)]]*$P$15 -> 0.077 | F24: 0.7 | G24: =Table[[#This Row],[Urea (%)]]*$P$20 -> 0 | H24: 0 | I24: 0.1533 | J24: 0.15 | K24: 0
A25: 70% MAP TE 30% MOP | B25: T/ha | C25: 0.077 | D25: =Table[[#This Row],[Non-Urea Nitrogen]]+Table[[#This Row],[Urea]] -> 0.077 | E25: =Table[[#This Row],[Non-Urea Nitrogen (%)]]*$P$15 -> 0.077 | F25: 0.7 | G25: =Table[[#This Row],[Urea (%)]]*$P$20 -> 0 | H25: 0 | I25: 0.1519 | J25: 0.15 | K25: 0.0217
A26: 70% Urea 30% SOA | B26: T/ha | C26: 0.385 | D26: =Table[[#This Row],[Non-Urea Nitrogen]]+Table[[#This Row],[Urea]] -> 0.385 | E26: =Table[[#This Row],[Non-Urea Nitrogen (%)]]*$P$19 -> 0.063 | F26: 0.3 | G26: =Table[[#This Row],[Urea (%)]]*$P$20 -> 0.322 | H26: 0.7 | I26: 0 | J26: 0 | K26: 0.072
A27: 73% UreaPlus 27% Muriate Of Potash | B27: T/ha | C27: 0.34 | D27: =Table[[#This Row],[Non-Urea Nitrogen]]+Table[[#This Row],[Urea]] -> 0.3358 | E27: =Table[[#This Row],[Non-Urea Nitrogen (%)]]*0 -> 0 | F27: 0 | G27: =Table[[#This Row],[Urea (%)]]*$P$20 -> 0.3358 | H27: 0.73 | I27: 0 | J27: 0.135 | K27: 0.0019
A28: 75% MAP 25% MOP | B28: T/ha | C28: 0.084 | D28: =Table[[#This Row],[Non-Urea Nitrogen]]+Table[[#This Row],[Urea]] -> 0.0829872 | E28: =Table[[#This Row],[Non-Urea Nitrogen (%)]]*$P$15 -> 0.0825 | F28: 0.75 | G28: =Table[[#This Row],[Urea (%)]]*$P$20 -> 0.0004872 | H28: =(Table[[#This Row],[N total Nitrogen (%)]]*58%*100/46)/100 -> 0.001059130435 | I28: 0.1688 | J28: 0.125 | K28: 0
A29: 75% Urea 25% MOP | B29: T/ha | C29: 0.35 | D29: =Table[[#This Row],[Non-Urea Nitrogen]]+Table[[#This Row],[Urea]] -> 0.345 | E29: =Table[[#This Row],[Non-Urea Nitrogen (%)]]*0 -> 0 | F29: 0 | G29: =Table[[#This Row],[Urea (%)]]*$P$20 -> 0.345 | H29: 0.75 | I29: 0 | J29: 0 | K29: 0
A30: 80% Urea 20% MAP | B30: T/ha | C30: 0.39 | D30: =Table[[#This Row],[Non-Urea Nitrogen]]+Table[[#This Row],[Urea]] -> 0.39 | E30: =Table[[#This Row],[Non-Urea Nitrogen (%)]]*$P$15 -> 0.022 | F30: 0.2 | G30: =Table[[#This Row],[Urea (%)]]*$P$20 -> 0.368 | H30: 0.8 | I30: 0.044 | J30: 0 | K30: 0
A31: Activate N | B31: T/ha | C31: 0.18 | D31: =Table[[#This Row],[Non-Urea Nitrogen]]+Table[[#This Row],[Urea]] -> 0.1806 | E31: =(Table[[#This Row],[Non-Urea Nitrogen (%)]]*(AVERAGE($P$10,$P$11))) -> 0.084 | F31: 0.28 | G31: =Table[[#This Row],[Urea (%)]]*$P$20 -> 0.0966 | H31: 0.21 | I31: 0.213 | J31: 0 | K31: 0.05 | L31: Active N (Lawnpride.com.au)
A32: Activist Max Zinc | B32: L/ha | C32: 0.07 | D32: =Table[[#This Row],[Non-Urea Nitrogen]]+Table[[#This Row],[Urea]] -> 0.091 | E32: =Table[[#This Row],[Non-Urea Nitrogen (%)]]*$P$11 -> 0.091 | F32: 0.35 | G32: =Table[[#This Row],[Urea (%)]]*$P$20 -> 0 | H32: 0 | I32: 0 | J32: 0 | K32: 0 | L32: ACTIVIST-MAX.pdf (agrichem.com.au)
A33: Agflow | B33: T/ha | C33: 0.129 | D33: =Table[[#This Row],[Non-Urea Nitrogen]]+Table[[#This Row],[Urea]] -> 0.1292 | E33: =Table[[#This Row],[Non-Urea Nitrogen (%)]]*$P$10 -> 0.1292 | F33: 0.38 | G33: =Table[[#This Row],[Urea (%)]]*$P$20 -> 0 | H33: 0 | I33: 0.17 | J33: 0 | K33: 0.06 | L33: CSBP High/Maintenance S
A34: Agflow Boost | B34: T/ha | C34: 0.121 | D34: =Table[[#This Row],[Non-Urea Nitrogen]]+Table[[#This Row],[Urea]] -> 0.119 | E34: =Table[[#This Row],[Non-Urea Nitrogen (%)]]*$P$10 -> 0.119 | F34: 0.35 | G34: =Table[[#This Row],[Urea (%)]]*$P$20 -> 0 | H34: 0 | I34: 0.198 | J34: 0 | K34: 0.041 | L34: CSBP High/Maintenance S
A35: Agflow Extra | B35: T/ha | C35: 0.127 | D35: =Table[[#This Row],[Non-Urea Nitrogen]]+Table[[#This Row],[Urea]] -> 0.1292 | E35: =Table[[#This Row],[Non-Urea Nitrogen (%)]]*$P$10 -> 0.1292 | F35: 0.38 | G35: =Table[[#This Row],[Urea (%)]]*$P$20 -> 0 | H35: 0 | I35: 0.18 | J35: 0 | K35: 0.057 | L35: CSBP High/Maintenance S | R35: *Table 1 Source. Adapted from Commission, E. (2019). Fertilisers in the EU: Prices, Trade and Use. EU Agricultural Markets Briefs, No. 15.
A36: AgNP | B36: T/ha | C36: 0.109 | D36: =Table[[#This Row],[Non-Urea Nitrogen]]+Table[[#This Row],[Urea]] -> 0.1088 | E36: =Table[[#This Row],[Non-Urea Nitrogen (%)]]*$P$10 -> 0.1088 | F36: 0.32 | G36: =Table[[#This Row],[Urea (%)]]*$P$20 -> 0 | H36: 0 | I36: 0.227 | J36: 0 | K36: 0.012 | L36: CSBP High/Maintenance S | R36: Source. SOA. LTD, M. M. R. P. (2017, May, 23th 2017). Technical Bulletin Spreading Sulphate of Ammonia. Retrieved from https://roesner.com.au/wp-content/uploads/sites/232/2018/03/techncial-bulletin-spreading-soa.pdf
A37: AllStar | B37: T/ha | C37: 0.13 | D37: =Table[[#This Row],[Non-Urea Nitrogen]]+Table[[#This Row],[Urea]] -> 0.1292 | E37: =Table[[#This Row],[Non-Urea Nitrogen (%)]]*$P$10 -> 0.1292 | F37: 0.38 | G37: =Table[[#This Row],[Urea (%)]]*$P$20 -> 0 | H37: 0 | I37: 0.14 | J37: 0 | K37: 0.09 | L37: Summit Fertilizers | R37: Source. KNO3. IPNI. (2019, April 2019). Nutrient Specifics Potassium Nitrate. Retrieved from https://efotg.sc.egov.usda.gov/references/public/AZ/Potassium_Nitrate.pdf
A38: Ammo 36 | B38: T/ha | C38: 0.356 | D38: =Table[[#This Row],[Non-Urea Nitrogen]]+Table[[#This Row],[Urea]] -> 1.092 | E38: =Table[[#This Row],[Non-Urea Nitrogen (%)]]*$P$11 -> 0.494 | F38: 1.9 | G38: =Table[[#This Row],[Urea (%)]]*$P$20 -> 0.598 | H38: 1.3 | I38: 0 | J38: 0 | K38: 0.092 | L38: Ravensdown
A39: Apex GaIXe Low P 21-1-6 | B39: kg/ha | C39: 0.21 | D39: =Table[[#This Row],[Non-Urea Nitrogen]]+Table[[#This Row],[Urea]] -> 0.2129 | E39: =Table[[#This Row],[Non-Urea Nitrogen (%)]]*$P$10 -> 0.068 | F39: 0.2 | G39: =Table[[#This Row],[Urea (%)]]*$P$20 -> 0.1449 | H39: 0.315 | I39: 0.008 | J39: 0.05 | K39: 0.055 | L39: Baileys controlled release fertilisers
A40: Big N | B40: T/ha | C40: 0.82 | D40: =Table[[#This Row],[Non-Urea Nitrogen]]+Table[[#This Row],[Urea]] -> 0.82 | E40: =Table[[#This Row],[Non-Urea Nitrogen (%)]]*$P$12 -> 0.82 | F40: 1 | G40: =Table[[#This Row],[Urea (%)]]*$P$20 -> 0 | H40: 0 | I40: 0 | J40: 0 | K40: 0 | L40: Big N Anhydrous ammonia NH3
A41: Big Phos | B41: T/ha | C41: 0 | D41: =Table[[#This Row],[Non-Urea Nitrogen]]+Table[[#This Row],[Urea]] -> 0 | E41: =Table[[#This Row],[Non-Urea Nitrogen (%)]]*0 -> 0 | F41: =Table[[#This Row],[N total Nitrogen (%)]]-Table[[#This Row],[Urea]] -> 0 | G41: =Table[[#This Row],[Urea (%)]]*$P$20 -> 0 | H41: 0 | I41: 0.135 | J41: 0 | K41: 0.075 | L41: CSBP Fertilisers Pulse and Lupins
A42: Campbells Quick-N | B42: T/ha | C42: 0.26 | D42: =Table[[#This Row],[Non-Urea Nitrogen]]+Table[[#This Row],[Urea]] -> 0.2584 | E42: =Table[[#This Row],[Non-Urea Nitrogen (%)]]*$P$10 -> 0.2584 | F42: 0.76 | G42: =Table[[#This Row],[Urea (%)]]*$P$20 -> 0 | H42: 0 | I42: 0 | J42: 0 | K42: 0.13 | L42: Quick-N | Campbells Fertilisers Australia
A43: CK 55 Ameliorant | B43: T/ha | C43: 0.135 | D43: =Table[[#This Row],[Non-Urea Nitrogen]]+Table[[#This Row],[Urea]] -> 0.136 | E43: =Table[[#This Row],[Non-Urea Nitrogen (%)]]*$P$10 -> 0.136 | F43: 0.4 | G43: =Table[[#This Row],[Urea (%)]]*$P$20 -> 0 | H43: 0 | I43: 0.15 | J43: 0.125 | K43: 0.012 | L43: Pacific Fertilisers Crop King
A44: Crop Booster Plus | B44: L/ha | C44: 0.05 | D44: =Table[[#This Row],[Non-Urea Nitrogen]]+Table[[#This Row],[Urea]] -> 0.0476 | E44: =Table[[#This Row],[Non-Urea Nitrogen (%)]]*$P$10 -> 0.0476 | F44: 0.14 | G44: =Table[[#This Row],[Urea (%)]]*$P$20 -> 0 | H44: 0 | I44: 0.15 | J44: 0.21 | K44: 0 | L44: SL TEC Fertilisers Crop Booster Plus
A45: DAP | B45: T/ha | C45: 0.18 | D45: =Table[[#This Row],[Non-Urea Nitrogen]]+Table[[#This Row],[Urea]] -> 0.18 | E45: =Table[[#This Row],[Non-Urea Nitrogen (%)]]*$P$14 -> 0.18 | F45: 1 | G45: =Table[[#This Row],[Urea (%)]]*$P$20 -> 0 | H45: 0 | I45: 0.2 | J45: 0 | K45: 0.016 | L45: MountCompass Fertilisers Blends
A46: DAPSZC | B46: T/ha | C46: 0.16 | D46: =Table[[#This Row],[Non-Urea Nitrogen]]+Table[[#This Row],[Urea]] -> 0.1584 | E46: =Table[[#This Row],[Non-Urea Nitrogen (%)]]*$P$14 -> 0.1584 | F46: 0.88 | G46: =Table[[#This Row],[Urea (%)]]*$P$20 -> 0 | H46: 0 | I46: 0.18 | J46: 0 | K46: 0.08 | L46: Summit Fertilizers
A47: Easy N Bulk | B47: L/ha | C47: 0.425 | D47: =Table[[#This Row],[Non-Urea Nitrogen]]+Table[[#This Row],[Urea]] -> 0.4348 | E47: =Table[[#This Row],[Non-Urea Nitrogen (%)]]*$P$10 -> 0.2278 | F47: 0.67 | G47: =Table[[#This Row],[Urea (%)]]*$P$20 -> 0.207 | H47: 0.45 | I47: 0 | J47: 0 | K47: 0 | L47: Incitec Pivot Fertilisers
A48: Entec Urea | B48: kg/ha | C48: 0.46 | D48: =Table[[#This Row],[Non-Urea Nitrogen]]+Table[[#This Row],[Urea]] -> 0.46 | E48: =Table[[#This Row],[Non-Urea Nitrogen (%)]]*0 -> 0 | F48: 0 | G48: =Table[[#This Row],[Urea (%)]]*$P$20 -> 0.46 | H48: 1 | I48: 0 | J48: 0 | K48: 0 | L48: Nuturf Urea Granular
A49: Ezyflow Nano Calbud | B49: L/ha | C49: 0.045 | D49: =Table[[#This Row],[Non-Urea Nitrogen]]+Table[[#This Row],[Urea]] -> 0.0492 | E49: =Table[[#This Row],[Non-Urea Nitrogen (%)]]*$P$16 -> 0.0492 | F49: 0.41 | G49: =Table[[#This Row],[Urea (%)]]*$P$20 -> 0 | H49: 0 | I49: 0 | J49: 0 | K49: 0 | L49: EzyFlow Nano Calbud | Loveland (lovelandagriproducts.com.au)
A50: Flexi-N NI only | B50: L/ha | C50: 0.45 | D50: =Table[[#This Row],[Non-Urea Nitrogen]]+Table[[#This Row],[Urea]] -> 0.4508 | E50: =Table[[#This Row],[Non-Urea Nitrogen (%)]]*0 -> 0 | F50: 0 | G50: =Table[[#This Row],[Urea (%)]]*$P$20 -> 0.4508 | H50: 0.98 | I50: 0 | J50: 0 | K50: 0 | L50: Ravensdown
A51: Glytrel ZnP 0-7-0 | B51: L/ha | C51: 0 | D51: =Table[[#This Row],[Non-Urea Nitrogen]]+Table[[#This Row],[Urea]] -> 0 | E51: =Table[[#This Row],[Non-Urea Nitrogen (%)]]*0 -> 0 | F51: =Table[[#This Row],[N total Nitrogen (%)]]-Table[[#This Row],[Urea]] -> 0 | G51: =Table[[#This Row],[Urea (%)]]*$P$20 -> 0 | H51: 0 | I51: 0.07 | J51: 0 | K51: 0 | L51: YaraVita Glytrel ZnP
A52: Gran-Am | B52: T/ha | C52: 0.202 | D52: =Table[[#This Row],[Non-Urea Nitrogen]]+Table[[#This Row],[Urea]] -> 0.1976 | E52: =Table[[#This Row],[Non-Urea Nitrogen (%)]]*$P$11 -> 0.1976 | F52: 0.76 | G52: =Table[[#This Row],[Urea (%)]]*$P$20 -> 0 | H52: 0 | I52: 0 | J52: 0 | K52: 0.24 | L52: Incitec Pivot Fertilisers
A53: Granulock SS | B53: T/ha | C53: 0.1 | D53: =Table[[#This Row],[Non-Urea Nitrogen]]+Table[[#This Row],[Urea]] -> 0.11 | E53: =Table[[#This Row],[Non-Urea Nitrogen (%)]]*$P$15 -> 0.11 | F53: 1 | G53: =Table[[#This Row],[Urea (%)]]*$P$20 -> 0 | H53: 0 | I53: 0.175 | J53: 0 | K53: 0.12 | L53: Incitec Pivot Fertilisers
A54: Granulock Z | B54: T/ha | C54: 0.11 | D54: =Table[[#This Row],[Non-Urea Nitrogen]]+Table[[#This Row],[Urea]] -> 0.121 | E54: =Table[[#This Row],[Non-Urea Nitrogen (%)]]*$P$15 -> 0.121 | F54: 1.1 | G54: =Table[[#This Row],[Urea (%)]]*$P$20 -> 0 | H54: 0 | I54: 0.218 | J54: 0 | K54: 0.04 | L54: Incitec Pivot Fertilisers
A55: Green Urea NV | B55: kg/ha | C55: 0.46 | D55: =Table[[#This Row],[Non-Urea Nitrogen]]+Table[[#This Row],[Urea]] -> 0.46 | E55: =Table[[#This Row],[Non-Urea Nitrogen (%)]]*0 -> 0 | F55: 0 | G55: =Table[[#This Row],[Urea (%)]]*$P$20 -> 0.46 | H55: 1 | I55: 0 | J55: 0 | K55: 0 | L55: Incitec Pivot Fertilisers
A56: Gypsum Sulphur | B56: kg/ha | C56: 0 | D56: =Table[[#This Row],[Non-Urea Nitrogen]]+Table[[#This Row],[Urea]] -> 0 | E56: =Table[[#This Row],[Non-Urea Nitrogen (%)]]*0 -> 0 | F56: 0 | G56: =Table[[#This Row],[Urea (%)]]*$P$20 -> 0 | H56: 0 | I56: 0 | J56: 0 | K56: 0.186 | L56: Gypsum Incitec Pivot Fertilisers
A57: Invigor8 0-37-37 | B57: kg/ha | C57: 0 | D57: =Table[[#This Row],[Non-Urea Nitrogen]]+Table[[#This Row],[Urea]] -> 0 | E57: =Table[[#This Row],[Non-Urea Nitrogen (%)]]*0 -> 0 | F57: =Table[[#This Row],[N total Nitrogen (%)]]-Table[[#This Row],[Urea]] -> 0 | G57: =Table[[#This Row],[Urea (%)]]*$P$20 -> 0 | H57: 0 | I57: 0.37 | J57: 0 | K57: 0 | L57: Genesis AG
A58: Manganese Sulphate | B58: T/ha | C58: 0 | D58: =Table[[#This Row],[Non-Urea Nitrogen]]+Table[[#This Row],[Urea]] -> 0 | E58: =Table[[#This Row],[Non-Urea Nitrogen (%)]]*0 -> 0 | F58: 0 | G58: =Table[[#This Row],[Urea (%)]]*$P$20 -> 0 | H58: 0 | I58: 0 | J58: 0 | K58: 0.18 | L58: Incitec Pivot Fertilisers
A59: MAP | B59: T/ha | C59: 0.1 | D59: =Table[[#This Row],[Non-Urea Nitrogen]]+Table[[#This Row],[Urea]] -> 0.11 | E59: =Table[[#This Row],[Non-Urea Nitrogen (%)]]*$P$15 -> 0.11 | F59: 1 | G59: =Table[[#This Row],[Urea (%)]]*$P$20 -> 0 | H59: 0 | I59: 0.219 | J59: 0 | K59: 0 | L59: Incitec Pivot Fertilisers
A60: MAP Impact | B60: T/ha | C60: 0.1 | D60: =Table[[#This Row],[Non-Urea Nitrogen]]+Table[[#This Row],[Urea]] -> 0.11 | E60: =Table[[#This Row],[Non-Urea Nitrogen (%)]]*$P$15 -> 0.11 | F60: 1 | G60: =Table[[#This Row],[Urea (%)]]*$P$20 -> 0 | H60: 0 | I60: 0.219 | J60: 0 | K60: 0.015 | L60: Impact fertilisers
A61: MAPSZC | B61: T/ha | C61: 0.12 | D61: =Table[[#This Row],[Non-Urea Nitrogen]]+Table[[#This Row],[Urea]] -> 0.132 | E61: =Table[[#This Row],[Non-Urea Nitrogen (%)]]*$P$15 -> 0.132 | F61: 1.2 | G61: =Table[[#This Row],[Urea (%)]]*$P$20 -> 0 | H61: 0 | I61: 0.21 | J61: 0 | K61: 0.04 | L61: Summit Fertilizers
A62: Maximum N-Pact 29-0-0 | B62: T/ha | C62: 0.29 | D62: =Table[[#This Row],[Non-Urea Nitrogen]]+Table[[#This Row],[Urea]] -> 0.2898 | E62: =Table[[#This Row],[Non-Urea Nitrogen (%)]]*0 -> 0 | F62: 0 | G62: =Table[[#This Row],[Urea (%)]]*$P$20 -> 0.2898 | H62: 0.63 | I62: 0 | J62: 0 | K62: 0 | L62: Maximum N-Pact | Loveland (lovelandagriproducts.com.au)
A63: Microsol 12-6-44 | B63: kg/ha | C63: 0.12 | D63: =Table[[#This Row],[Non-Urea Nitrogen]]+Table[[#This Row],[Urea]] -> 0.119 | E63: =Table[[#This Row],[Non-Urea Nitrogen (%)]]*$P$10 -> 0.119 | F63: 0.35 | G63: =Table[[#This Row],[Urea (%)]]*$P$20 -> 0 | H63: 0 | I63: 0.06 | J63: 0.44 | K63: 0.07 | L63: Rigbytaylor Microsol Range
A64: Microsol 16-32-16 | B64: kg/ha | C64: 0.16 | D64: =Table[[#This Row],[Non-Urea Nitrogen]]+Table[[#This Row],[Urea]] -> 0.1572 | E64: =Table[[#This Row],[Non-Urea Nitrogen (%)]]*$P$10 -> 0.0238 | F64: 0.07 | G64: =Table[[#This Row],[Urea (%)]]*$P$20 -> 0.1334 | H64: 0.29 | I64: 0.32 | J64: 0.16 | K64: 0.07 | L64: Rigbytaylor Microsol Range
A65: Microsol 25-5-10 | B65: kg/ha | C65: 0.25 | D65: =Table[[#This Row],[Non-Urea Nitrogen]]+Table[[#This Row],[Urea]] -> 0.2478 | E65: =Table[[#This Row],[Non-Urea Nitrogen (%)]]*$P$10 -> 0.119 | F65: 0.35 | G65: =Table[[#This Row],[Urea (%)]]*$P$20 -> 0.1288 | H65: 0.28 | I65: 0.05 | J65: 0.1 | K65: 0.07 | L65: Rigbytaylor Microsol Range
A66: Microsol 28-0-14 | B66: kg/ha | C66: 0.28 | D66: =Table[[#This Row],[Non-Urea Nitrogen]]+Table[[#This Row],[Urea]] -> 0.28 | E66: =Table[[#This Row],[Non-Urea Nitrogen (%)]]*$P$10 -> 0.0408 | F66: 0.12 | G66: =Table[[#This Row],[Urea (%)]]*$P$20 -> 0.2392 | H66: 0.52 | I66: 0 | J66: 0.14 | K66: 0.07 | L66: Rigbytaylor Microsol Range
A67: Mono Potassium Phosphate MKP | B67: kg/ha | C67: 0 | D67: =Table[[#This Row],[Non-Urea Nitrogen]]+Table[[#This Row],[Urea]] -> 0 | E67: =Table[[#This Row],[Non-Urea Nitrogen (%)]]*0 -> 0 | F67: 0 | G67: =Table[[#This Row],[Urea (%)]]*$P$20 -> 0 | H67: 0 | I67: 0.225 | J67: 0.275 | K67: 0 | L67: Swancrop
A68: Muriate Of Potash MOP | B68: T/ha | C68: 0 | D68: =Table[[#This Row],[Non-Urea Nitrogen]]+Table[[#This Row],[Urea]] -> 0 | E68: =Table[[#This Row],[Non-Urea Nitrogen (%)]]*0 -> 0 | F68: 0 | G68: =Table[[#This Row],[Urea (%)]]*$P$20 -> 0 | H68: 0 | I68: 0 | J68: 0.5 | K68: 0 | L68: MountCompass Fertilisers Blends
A69: NitroPlus | B69: L/ha | C69: 0.18 | D69: =Table[[#This Row],[Non-Urea Nitrogen]]+Table[[#This Row],[Urea]] -> 0.17712 | E69: =Table[[#This Row],[Non-Urea Nitrogen (%)]]*$P$10 -> 0.02992 | F69: 0.088 | G69: =Table[[#This Row],[Urea (%)]]*$P$20 -> 0.1472 | H69: 0.32 | I69: 0 | J69: 0 | K69: 0.05 | L69: AgroStock Group Nitro Plus
A70: NutraGold | B70: T/ha | C70: 0 | D70: =Table[[#This Row],[Non-Urea Nitrogen]]+Table[[#This Row],[Urea]] -> 0 | E70: =Table[[#This Row],[Non-Urea Nitrogen (%)]]*0 -> 0 | F70: 0 | G70: =Table[[#This Row],[Urea (%)]]*$P$20 -> 0 | H70: 0 | I70: 0 | J70: 0 | K70: 0.9 | L70: Swancrop
A71: Pro Performance 18-3-6 | B71: L/ha | C71: 0.18 | D71: =Table[[#This Row],[Non-Urea Nitrogen]]+Table[[#This Row],[Urea]] -> 0.1768 | E71: =Table[[#This Row],[Non-Urea Nitrogen (%)]]*$P$10 -> 0.0986 | F71: 0.29 | G71: =Table[[#This Row],[Urea (%)]]*$P$20 -> 0.0782 | H71: 0.17 | I71: 0.03 | J71: 0.5 | K71: 0 | L71: Pro Turf Formula
A72: SOA | B72: T/ha | C72: 0.208 | D72: =Table[[#This Row],[Non-Urea Nitrogen]]+Table[[#This Row],[Urea]] -> 0.21 | E72: =Table[[#This Row],[Non-Urea Nitrogen (%)]]*$P$19 -> 0.21 | F72: 1 | G72: =Table[[#This Row],[Urea (%)]]*$P$20 -> 0 | H72: 0 | I72: 0 | J72: 0 | K72: 0.24 | L72: MountCompass Fertilisers Blends
A73: SSP | B73: T/ha | C73: 0 | D73: =Table[[#This Row],[Non-Urea Nitrogen]]+Table[[#This Row],[Urea]] -> 0 | E73: =Table[[#This Row],[Non-Urea Nitrogen (%)]]*0 -> 0 | F73: 0 | G73: =Table[[#This Row],[Urea (%)]]*$P$20 -> 0 | H73: 0 | I73: 0.088 | J73: 0 | K73: 0.11 | L73: Impact fertilisers
A74: Super Phos | B74: kg/ha | C74: 0 | D74: =Table[[#This Row],[Non-Urea Nitrogen]]+Table[[#This Row],[Urea]] -> 0 | E74: =Table[[#This Row],[Non-Urea Nitrogen (%)]]*0 -> 0 | F74: 0 | G74: =Table[[#This Row],[Urea (%)]]*$P$20 -> 0 | H74: 0 | I74: 0.091 | J74: 0 | K74: 0.105 | L74: CSBP Super PHOS
A75: Super SR Extra | B75: T/ha | C75: 0 | D75: =Table[[#This Row],[Non-Urea Nitrogen]]+Table[[#This Row],[Urea]] -> 0 | E75: =Table[[#This Row],[Non-Urea Nitrogen (%)]]*0 -> 0 | F75: 0 | G75: =Table[[#This Row],[Urea (%)]]*$P$20 -> 0 | H75: 0 | I75: 0.095 | J75: 0 | K75: 0.094 | L75: CSBP Super Potash
A76: SuPerfect | B76: kg/ha | C76: 0 | D76: =Table[[#This Row],[Non-Urea Nitrogen]]+Table[[#This Row],[Urea]] -> 0 | E76: =Table[[#This Row],[Non-Urea Nitrogen (%)]]*0 -> 0 | F76: 0 | G76: =Table[[#This Row],[Urea (%)]]*$P$20 -> 0 | H76: 0 | I76: 0.088 | J76: 0 | K76: 0.11 | L76: Incitec Pivot Fertilisers
A77: SuperPasture Potash 5:1 | B77: T/ha | C77: 0 | D77: =Table[[#This Row],[Non-Urea Nitrogen]]+Table[[#This Row],[Urea]] -> 0 | E77: =Table[[#This Row],[Non-Urea Nitrogen (%)]]*0 -> 0 | F77: 0 | G77: =Table[[#This Row],[Urea (%)]]*$P$20 -> 0 | H77: 0 | I77: 0.076 | J77: 0.084 | K77: 0.087 | L77: CSBP Super Potash
A78: Trace-it Mn | B78: L/ha | C78: 0 | D78: =Table[[#This Row],[Non-Urea Nitrogen]]+Table[[#This Row],[Urea]] -> 0 | E78: =Table[[#This Row],[Non-Urea Nitrogen (%)]]*0 -> 0 | F78: 0 | G78: =Table[[#This Row],[Urea (%)]]*$P$20 -> 0 | H78: 0 | I78: 0 | J78: 0 | K78: 0.11 | L78: Campbells fertilisers Australia
A79: UniSZon | B79: kg/ha | C79: 0.12 | D79: =Table[[#This Row],[Non-Urea Nitrogen]]+Table[[#This Row],[Urea]] -> 0.119 | E79: =Table[[#This Row],[Non-Urea Nitrogen (%)]]*$P$10 -> 0.119 | F79: 0.35 | G79: =Table[[#This Row],[Urea (%)]]*$P$20 -> 0 | H79: 0 | I79: 0.21 | J79: 0 | K79: 0.045 | L79: WengfuAustralia uniSZon
A80: Urea | B80: T/ha | C80: 0.46 | D80: =Table[[#This Row],[Non-Urea Nitrogen]]+Table[[#This Row],[Urea]] -> 0.46 | E80: =Table[[#This Row],[Non-Urea Nitrogen (%)]]*0 -> 0 | F80: =Table[[#This Row],[N total Nitrogen (%)]]-Table[[#This Row],[Urea]] -> 0 | G80: =Table[[#This Row],[Urea (%)]]*$P$20 -> 0.46 | H80: 1 | I80: 0 | J80: 0 | K80: 0 | L80: ProductCard_Adelaide_web.pdf (incitecpivotfertilisers.com.au)
A81: Wengfu Slam Granular | B81: kg/ha | C81: 0.19 | D81: =Table[[#This Row],[Non-Urea Nitrogen]]+Table[[#This Row],[Urea]] -> 0.187 | E81: =Table[[#This Row],[Non-Urea Nitrogen (%)]]*$P$10 -> 0.187 | F81: 0.55 | G81: =Table[[#This Row],[Urea (%)]]*$P$20 -> 0 | H81: 0 | I81: 0.007 | J81: 0 | K81: 0.23 | L81: Straights (wengfu.com.au)
A82: Yara FlowPhos 10 | B82: L/ha | C82: 0.126 | D82: =Table[[#This Row],[Non-Urea Nitrogen]]+Table[[#This Row],[Urea]] -> 0.1269 | E82: =Table[[#This Row],[Non-Urea Nitrogen (%)]]*$P$10 -> 0.051 | F82: 0.15 | G82: =Table[[#This Row],[Urea (%)]]*$P$20 -> 0.0759 | H82: 0.165 | I82: 0.1 | J82: 0.051 | K82: 0 | L82: Crop Nutrition Solutions (Yara Australia)
A83: Yara FlowPhos 13Z | B83: L/ha | C83: 0.09 | D83: =Table[[#This Row],[Non-Urea Nitrogen]]+Table[[#This Row],[Urea]] -> 0.08976 | E83: =Table[[#This Row],[Non-Urea Nitrogen (%)]]*$P$10 -> 0.08976 | F83: 0.264 | G83: =Table[[#This Row],[Urea (%)]]*$P$20 -> 0 | H83: 0 | I83: 0.135 | J83: 0.01 | K83: 0 | L83: Crop Nutrition Solutions (Yara Australia)
A84: Yara FlowPhos 15 | B84: L/ha | C84: 0.1 | D84: =Table[[#This Row],[Non-Urea Nitrogen]]+Table[[#This Row],[Urea]] -> 0.09996 | E84: =Table[[#This Row],[Non-Urea Nitrogen (%)]]*$P$10 -> 0.09996 | F84: 0.294 | G84: =Table[[#This Row],[Urea (%)]]*$P$20 -> 0 | H84: 0 | I84: 0.15 | J84: 0 | K84: 0 | L84: Crop Nutrition Solutions (Yara Australia)
A85: Yara FlowPhos KZ | B85: L/ha | C85: 0.075 | D85: =Table[[#This Row],[Non-Urea Nitrogen]]+Table[[#This Row],[Urea]] -> 0.0799 | E85: =Table[[#This Row],[Non-Urea Nitrogen (%)]]*$P$10 -> 0.0799 | F85: 0.235 | G85: =Table[[#This Row],[Urea (%)]]*$P$20 -> 0 | H85: 0 | I85: 0.141 | J85: 0 | K85: 0 | L85: Crop Nutrition Solutions (Yara Australia)
A86: Yara KeyPro Trace | B86: L/ha | C86: 0 | D86: =Table[[#This Row],[Non-Urea Nitrogen]]+Table[[#This Row],[Urea]] -> 0 | E86: =Table[[#This Row],[Non-Urea Nitrogen (%)]]*0 -> 0 | F86: =Table[[#This Row],[N total Nitrogen (%)]]-Table[[#This Row],[Urea]] -> 0 | G86: =Table[[#This Row],[Urea (%)]]*$P$20 -> 0 | H86: 0 | I86: 0 | J86: 0.044 | K86: 0 | L86: Crop Nutrition Solutions (Yara Australia)
A87: Yara KeyPro Zinc | B87: L/ha | C87: 0 | D87: =Table[[#This Row],[Non-Urea Nitrogen]]+Table[[#This Row],[Urea]] -> 0 | E87: =Table[[#This Row],[Non-Urea Nitrogen (%)]]*0 -> 0 | F87: =Table[[#This Row],[N total Nitrogen (%)]]-Table[[#This Row],[Urea]] -> 0 | G87: =Table[[#This Row],[Urea (%)]]*$P$20 -> 0 | H87: 0 | I87: 0 | J87: 0.092 | K87: 0 | L87: Crop Nutrition Solutions (Yara Australia)
A88: Yara K-Flow 0-0-15 | B88: L/ha | C88: 0 | D88: =Table[[#This Row],[Non-Urea Nitrogen]]+Table[[#This Row],[Urea]] -> 0 | E88: =Table[[#This Row],[Non-Urea Nitrogen (%)]]*0 -> 0 | F88: =Table[[#This Row],[N total Nitrogen (%)]]-Table[[#This Row],[Urea]] -> 0 | G88: =Table[[#This Row],[Urea (%)]]*$P$20 -> 0 | H88: 0 | I88: 0 | J88: 0.15 | K88: 0 | L88: Crop Nutrition Solutions (Yara Australia)
A89: Yara K-Flow 0-14-30 | B89: L/ha | C89: 0 | D89: =Table[[#This Row],[Non-Urea Nitrogen]]+Table[[#This Row],[Urea]] -> 0 | E89: =Table[[#This Row],[Non-Urea Nitrogen (%)]]*0 -> 0 | F89: =Table[[#This Row],[N total Nitrogen (%)]]-Table[[#This Row],[Urea]] -> 0 | G89: =Table[[#This Row],[Urea (%)]]*$P$20 -> 0 | H89: 0 | I89: 0.14 | J89: 0.3 | K89: 0 | L89: Crop Nutrition Solutions (Yara Australia)
A90: Yara K-Flow 0-7-36 | B90: L/ha | C90: 0 | D90: =Table[[#This Row],[Non-Urea Nitrogen]]+Table[[#This Row],[Urea]] -> 0 | E90: =Table[[#This Row],[Non-Urea Nitrogen (%)]]*0 -> 0 | F90: =Table[[#This Row],[N total Nitrogen (%)]]-Table[[#This Row],[Urea]] -> 0 | G90: =Table[[#This Row],[Urea (%)]]*$P$20 -> 0 | H90: 0 | I90: 0.07 | J90: 0.358 | K90: 0 | L90: Crop Nutrition Solutions (Yara Australia)
A91: Yara K-Flow 13-0-7 | B91: L/ha | C91: 0.133 | D91: =Table[[#This Row],[Non-Urea Nitrogen]]+Table[[#This Row],[Urea]] -> 0.13294 | E91: =Table[[#This Row],[Non-Urea Nitrogen (%)]]*0 -> 0 | F91: 0 | G91: =Table[[#This Row],[Urea (%)]]*$P$20 -> 0.13294 | H91: 0.289 | I91: 0 | J91: 0.074 | K91: 0 | L91: Crop Nutrition Solutions (Yara Australia)
A92: Yara K-Flow 4-0-12 | B92: L/ha | C92: 0.04 | D92: =Table[[#This Row],[Non-Urea Nitrogen]]+Table[[#This Row],[Urea]] -> 0.0425 | E92: =Table[[#This Row],[Non-Urea Nitrogen (%)]]*$P$10 -> 0.0425 | F92: 0.125 | G92: =Table[[#This Row],[Urea (%)]]*$P$20 -> 0 | H92: 0 | I92: 0 | J92: 0.12 | K92: 0 | L92: Crop Nutrition Solutions (Yara Australia)
A93: Yara Liquids MICRO-SUL | B93: L/ha | C93: 0.07 | D93: =Table[[#This Row],[Non-Urea Nitrogen]]+Table[[#This Row],[Urea]] -> 0.06992 | E93: =Table[[#This Row],[Non-Urea Nitrogen (%)]]*0 -> 0 | F93: 0 | G93: =Table[[#This Row],[Urea (%)]]*$P$20 -> 0.06992 | H93: 0.152 | I93: 0 | J93: 0 | K93: 0.07 | L93: Crop Nutrition Solutions (Yara Australia)
A94: Yara Liquids N24 | B94: L/ha | C94: 0.24 | D94: =Table[[#This Row],[Non-Urea Nitrogen]]+Table[[#This Row],[Urea]] -> 0.23966 | E94: =Table[[#This Row],[Non-Urea Nitrogen (%)]]*0 -> 0 | F94: 0 | G94: =Table[[#This Row],[Urea (%)]]*$P$20 -> 0.23966 | H94: 0.521 | I94: 0 | J94: 0 | K94: 0 | L94: Crop Nutrition Solutions (Yara Australia)
A95: Yara Liquids N25 | B95: L/ha | C95: 0.25 | D95: =Table[[#This Row],[Non-Urea Nitrogen]]+Table[[#This Row],[Urea]] -> 0.251425 | E95: =Table[[#This Row],[Non-Urea Nitrogen (%)]]*(AVERAGE($P$10,$P$17)) -> 0.251425 | F95: 0.89 | G95: =Table[[#This Row],[Urea (%)]]*$P$20 -> 0 | H95: 0 | I95: 0 | J95: 0 | K95: 0 | L95: Crop Nutrition Solutions (Yara Australia)
A96: Yara Liquids N26 | B96: L/ha | C96: 0.26 | D96: =Table[[#This Row],[Non-Urea Nitrogen]]+Table[[#This Row],[Urea]] -> 0.2599 | E96: =Table[[#This Row],[Non-Urea Nitrogen (%)]]*0 -> 0 | F96: =Table[[#This Row],[N total Nitrogen (%)]]-Table[[#This Row],[Urea]] -> 0.0001 | G96: =Table[[#This Row],[Urea (%)]]*$P$20 -> 0.2599 | H96: 0.565 | I96: 0 | J96: 0 | K96: 0 | L96: Crop Nutrition Solutions (Yara Australia)
A97: Yara Liquids N42 | B97: L/ha | C97: 0.42 | D97: =Table[[#This Row],[Non-Urea Nitrogen]]+Table[[#This Row],[Urea]] -> 0.384885 | E97: =Table[[#This Row],[Non-Urea Nitrogen (%)]]*(AVERAGE($P$10,$P$17)) -> 0.170065 | F97: 0.602 | G97: =Table[[#This Row],[Urea (%)]]*$P$20 -> 0.21482 | H97: 0.467 | I97: 0 | J97: 0 | K97: 0 | L97: Crop Nutrition Solutions (Yara Australia)
A98: Yara Liquids N-CAL 15+18Ca | B98: L/ha | C98: 0.149 | D98: =Table[[#This Row],[Non-Urea Nitrogen]]+Table[[#This Row],[Urea]] -> 0.14892 | E98: =Table[[#This Row],[Non-Urea Nitrogen (%)]]*34/100 -> 0.14892 | F98: 0.438 | G98: =Table[[#This Row],[Urea (%)]]*$P$20 -> 0 | H98: 0 | I98: 0 | J98: 0 | K98: 0 | L98: Crop Nutrition Solutions (Yara Australia)
A99: Yara Liquids N-CAL 20+10Ca+B | B99: L/ha | C99: 0.195 | D99: =Table[[#This Row],[Non-Urea Nitrogen]]+Table[[#This Row],[Urea]] -> 0.19652 | E99: =Table[[#This Row],[Non-Urea Nitrogen (%)]]*34/100 -> 0.19652 | F99: 0.578 | G99: =Table[[#This Row],[Urea (%)]]*$P$20 -> 0 | H99: 0 | I99: 0 | J99: 0 | K99: 0 | L99: Crop Nutrition Solutions (Yara Australia)
A100: Yara Liquids N-CAL 35+6Ca | B100: L/ha | C100: 0.35 | D100: =Table[[#This Row],[Non-Urea Nitrogen]]+Table[[#This Row],[Urea]] -> 0.35296 | E100: =Table[[#This Row],[Non-Urea Nitrogen (%)]]*$P$10 -> 0.05304 | F100: 0.156 | G100: =Table[[#This Row],[Urea (%)]]*$P$20 -> 0.29992 | H100: 0.652 | I100: 0 | J100: 0 | K100: 0 | L100: Crop Nutrition Solutions (Yara Australia)
A101: Yara Liquids N-FOL 24 | B101: L/ha | C101: 0.24 | D101: =Table[[#This Row],[Non-Urea Nitrogen]]+Table[[#This Row],[Urea]] -> 0.23966 | E101: =Table[[#This Row],[Non-Urea Nitrogen (%)]]*0 -> 0 | F101: 0 | G101: =Table[[#This Row],[Urea (%)]]*$P$20 -> 0.23966 | H101: 0.521 | I101: 0 | J101: 0 | K101: 0 | L101: Crop Nutrition Solutions (Yara Australia)
A102: Yara Liquids N-FOL 24+TE | B102: L/ha | C102: 0.246 | D102: =Table[[#This Row],[Non-Urea Nitrogen]]+Table[[#This Row],[Urea]] -> 0.24564 | E102: =Table[[#This Row],[Non-Urea Nitrogen (%)]]*0 -> 0 | F102: 0 | G102: =Table[[#This Row],[Urea (%)]]*$P$20 -> 0.24564 | H102: 0.534 | I102: 0 | J102: 0 | K102: 0.005 | L102: Crop Nutrition Solutions (Yara Australia)
A103: Yara Liquids P-FOL Zinc | B103: L/ha | C103: 0 | D103: =Table[[#This Row],[Non-Urea Nitrogen]]+Table[[#This Row],[Urea]] -> 0 | E103: =Table[[#This Row],[Non-Urea Nitrogen (%)]]*0 -> 0 | F103: =Table[[#This Row],[N total Nitrogen (%)]]-Table[[#This Row],[Urea]] -> 0 | G103: =Table[[#This Row],[Urea (%)]]*$P$20 -> 0 | H103: 0 | I103: 0.18 | J103: 0.02 | K103: 0 | L103: Crop Nutrition Solutions (Yara Australia)
A104: Yara Liquids SULSA 11-0-0+12S | B104: L/ha | C104: 0.105 | D104: =Table[[#This Row],[Non-Urea Nitrogen]]+Table[[#This Row],[Urea]] -> 0.0806 | E104: =Table[[#This Row],[Non-Urea Nitrogen (%)]]*$P$11 -> 0.0806 | F104: 0.31 | G104: =Table[[#This Row],[Urea (%)]]*$P$20 -> 0 | H104: 0 | I104: 0 | J104: 0 | K104: 0.12 | L104: Crop Nutrition Solutions (Yara Australia)
A105: Yara Liquids SULSA 24-3-0+6S | B105: L/ha | C105: 0.237 | D105: =Table[[#This Row],[Non-Urea Nitrogen]]+Table[[#This Row],[Urea]] -> 0.22142 | E105: =Table[[#This Row],[Non-Urea Nitrogen (%)]]*$P$11 -> 0.05122 | F105: 0.197 | G105: =Table[[#This Row],[Urea (%)]]*$P$20 -> 0.1702 | H105: 0.37 | I105: 0 | J105: 0 | K105: 0.05 | L105: Crop Nutrition Solutions (Yara Australia)
A106: Yara Liquids SULSA 27-0-0+7S | B106: L/ha | C106: 0.267 | D106: =Table[[#This Row],[Non-Urea Nitrogen]]+Table[[#This Row],[Urea]] -> 0.25276 | E106: =Table[[#This Row],[Non-Urea Nitrogen (%)]]*$P$11 -> 0.04576 | F106: 0.176 | G106: =Table[[#This Row],[Urea (%)]]*$P$20 -> 0.207 | H106: 0.45 | I106: 0 | J106: 0 | K106: 0.068 | L106: Crop Nutrition Solutions (Yara Australia)
A107: Yara Liquids SULSA 36-0-0+3S | B107: L/ha | C107: 0.36 | D107: =Table[[#This Row],[Non-Urea Nitrogen]]+Table[[#This Row],[Urea]] -> 0.34256 | E107: =Table[[#This Row],[Non-Urea Nitrogen (%)]]*(AVERAGE($P$10,$P$11)) -> 0.1305 | F107: 0.435 | G107: =Table[[#This Row],[Urea (%)]]*$P$20 -> 0.21206 | H107: 0.461 | I107: 0 | J107: 0 | K107: 0.027 | L107: Crop Nutrition Solutions (Yara Australia)
A108: YaraLiva CALCINIT B | B108: L/ha | C108: 0.155 | D108: =Table[[#This Row],[Non-Urea Nitrogen]]+Table[[#This Row],[Urea]] -> 0.156 | E108: =Table[[#This Row],[Non-Urea Nitrogen (%)]]*(AVERAGE($P$10,$P$11)) -> 0.156 | F108: 0.52 | G108: =Table[[#This Row],[Urea (%)]]*$P$20 -> 0 | H108: 0 | I108: 0 | J108: 0 | K108: 0 | L108: Crop Nutrition Solutions (Yara Australia)
A109: YaraLiva NITRABOR | B109: L/ha | C109: 0.154 | D109: =Table[[#This Row],[Non-Urea Nitrogen]]+Table[[#This Row],[Urea]] -> 0.15 | E109: =Table[[#This Row],[Non-Urea Nitrogen (%)]]*(AVERAGE($P$10,$P$11)) -> 0.15 | F109: 0.5 | G109: =Table[[#This Row],[Urea (%)]]*$P$20 -> 0 | H109: 0 | I109: 0 | J109: 0 | K109: 0 | L109: YaraLiva NITRABOR | Yara Australia
A110: YaraLiva TROPICOTE | B110: L/ha | C110: 0.154 | D110: =Table[[#This Row],[Non-Urea Nitrogen]]+Table[[#This Row],[Urea]] -> 0.147 | E110: =Table[[#This Row],[Non-Urea Nitrogen (%)]]*(AVERAGE($P$10,$P$11)) -> 0.147 | F110: 0.49 | G110: =Table[[#This Row],[Urea (%)]]*$P$20 -> 0 | H110: 0 | I110: 0 | J110: 0 | K110: 0 | L110: Crop Nutrition Solutions (Yara Australia)
A111: YaraMila Complex | B111: L/ha | C111: 0.12 | D111: =Table[[#This Row],[Non-Urea Nitrogen]]+Table[[#This Row],[Urea]] -> 0.108 | E111: =Table[[#This Row],[Non-Urea Nitrogen (%)]]*(AVERAGE($P$10,$P$11)) -> 0.108 | F111: 0.36 | G111: =Table[[#This Row],[Urea (%)]]*$P$20 -> 0 | H111: 0 | I111: 0.05 | J111: 0.15 | K111: 0.08 | L111: Crop Nutrition Solutions (Yara Australia)
A112: YaraMila Complex 17-5-10(4) | B112: L/ha | C112: 0.17 | D112: =Table[[#This Row],[Non-Urea Nitrogen]]+Table[[#This Row],[Urea]] -> 0.15 | E112: =Table[[#This Row],[Non-Urea Nitrogen (%)]]*(AVERAGE($P$10,$P$11)) -> 0.15 | F112: 0.5 | G112: =Table[[#This Row],[Urea (%)]]*$P$20 -> 0 | H112: 0 | I112: 0.046 | J112: 0.1 | K112: 0.04 | L112: Crop Nutrition Solutions (Yara Australia)
A113: YaraMila Complex 21-7-3(4) | B113: L/ha | C113: 0.21 | D113: =Table[[#This Row],[Non-Urea Nitrogen]]+Table[[#This Row],[Urea]] -> 0.186 | E113: =Table[[#This Row],[Non-Urea Nitrogen (%)]]*(AVERAGE($P$10,$P$11)) -> 0.186 | F113: 0.62 | G113: =Table[[#This Row],[Urea (%)]]*$P$20 -> 0 | H113: 0 | I113: 0.074 | J113: 0.025 | K113: 0.04 | L113: Crop Nutrition Solutions (Yara Australia)
A114: YaraMila UNIVERSAL | B114: L/ha | C114: 0.15 | D114: =Table[[#This Row],[Non-Urea Nitrogen]]+Table[[#This Row],[Urea]] -> 0.132 | E114: =Table[[#This Row],[Non-Urea Nitrogen (%)]]*(AVERAGE($P$10,$P$11)) -> 0.132 | F114: 0.44 | G114: =Table[[#This Row],[Urea (%)]]*$P$20 -> 0 | H114: 0 | I114: 0.066 | J114: 0.125 | K114: 0.048 | L114: Crop Nutrition Solutions (Yara Australia)
A115: YaraRega 13-2-21 | B115: L/ha | C115: 0.13 | D115: =Table[[#This Row],[Non-Urea Nitrogen]]+Table[[#This Row],[Urea]] -> 0.126 | E115: =Table[[#This Row],[Non-Urea Nitrogen (%)]]*(AVERAGE($P$10,$P$11)) -> 0.126 | F115: 0.42 | G115: =Table[[#This Row],[Urea (%)]]*$P$20 -> 0 | H115: 0 | I115: 0.0175 | J115: 0.208 | K115: 0.09 | L115: Crop Nutrition Solutions (Yara Australia)
A116: YaraVita BORTRAC | B116: L/ha | C116: 0.065 | D116: =Table[[#This Row],[Non-Urea Nitrogen]]+Table[[#This Row],[Urea]] -> 0.066 | E116: =Table[[#This Row],[Non-Urea Nitrogen (%)]]*(AVERAGE($P$10,$P$11)) -> 0.066 | F116: 0.22 | G116: =Table[[#This Row],[Urea (%)]]*$P$20 -> 0 | H116: 0 | I116: 0 | J116: 0 | K116: 0 | L116: Crop Nutrition Solutions (Yara Australia)
A117: YaraVita BRASSITREL DF | B117: kg/ha | C117: 0.01 | D117: =Table[[#This Row],[Non-Urea Nitrogen]]+Table[[#This Row],[Urea]] -> 0.009 | E117: =Table[[#This Row],[Non-Urea Nitrogen (%)]]*(AVERAGE($P$10,$P$11)) -> 0.009 | F117: 0.03 | G117: =Table[[#This Row],[Urea (%)]]*$P$20 -> 0 | H117: 0 | I117: 0 | J117: 0 | K117: 0.04 | L117: Crop Nutrition Solutions (Yara Australia)
A118: YaraVita BRASSITREL PRO | B118: L/ha | C118: 0.069 | D118: =Table[[#This Row],[Non-Urea Nitrogen]]+Table[[#This Row],[Urea]] -> 0.066 | E118: =Table[[#This Row],[Non-Urea Nitrogen (%)]]*(AVERAGE($P$10,$P$11)) -> 0.066 | F118: 0.22 | G118: =Table[[#This Row],[Urea (%)]]*$P$20 -> 0 | H118: 0 | I118: 0 | J118: 0 | K118: 0 | L118: Crop Nutrition Solutions (Yara Australia)
A119: YaraVita BUD BUILDER FL | B119: L/ha | C119: 0.069 | D119: =Table[[#This Row],[Non-Urea Nitrogen]]+Table[[#This Row],[Urea]] -> 0.066 | E119: =Table[[#This Row],[Non-Urea Nitrogen (%)]]*(AVERAGE($P$10,$P$11)) -> 0.066 | F119: 0.22 | G119: =Table[[#This Row],[Urea (%)]]*$P$20 -> 0 | H119: 0 | I119: 0.022 | J119: 0 | K119: 0 | L119: Crop Nutrition Solutions (Yara Australia)
A120: YaraVita FRUTREL | B120: L/ha | C120: 0.069 | D120: =Table[[#This Row],[Non-Urea Nitrogen]]+Table[[#This Row],[Urea]] -> 0.066 | E120: =Table[[#This Row],[Non-Urea Nitrogen (%)]]*(AVERAGE($P$10,$P$11)) -> 0.066 | F120: 0.22 | G120: =Table[[#This Row],[Urea (%)]]*$P$20 -> 0 | H120: 0 | I120: 0.105 | J120: 0 | K120: 0 | L120: Crop Nutrition Solutions (Yara Australia)
A121: YaraVita GLYTREL ZnP | B121: L/ha | C121: 0 | D121: =Table[[#This Row],[Non-Urea Nitrogen]]+Table[[#This Row],[Urea]] -> 0 | E121: =Table[[#This Row],[Non-Urea Nitrogen (%)]]*0 -> 0 | F121: =Table[[#This Row],[N total Nitrogen (%)]]-Table[[#This Row],[Urea]] -> 0 | G121: =Table[[#This Row],[Urea (%)]]*$P$20 -> 0 | H121: 0 | I121: 0.044 | J121: 0 | K121: 0 | L121: Crop Nutrition Solutions (Yara Australia)
A122: YaraVita GRAMITREL | B122: L/ha | C122: 0.064 | D122: =Table[[#This Row],[Non-Urea Nitrogen]]+Table[[#This Row],[Urea]] -> 0.0564 | E122: =Table[[#This Row],[Non-Urea Nitrogen (%)]]*(AVERAGE($P$10,$P$11)) -> 0.0564 | F122: 0.188 | G122: =Table[[#This Row],[Urea (%)]]*$P$20 -> 0 | H122: 0 | I122: 0 | J122: 0 | K122: 0 | L122: Crop Nutrition Solutions (Yara Australia)
A123: YaraVita KOMBIPHOS | B123: L/ha | C123: 0 | D123: =Table[[#This Row],[Non-Urea Nitrogen]]+Table[[#This Row],[Urea]] -> 0 | E123: =Table[[#This Row],[Non-Urea Nitrogen (%)]]*0 -> 0 | F123: =Table[[#This Row],[N total Nitrogen (%)]]-Table[[#This Row],[Urea]] -> 0 | G123: =Table[[#This Row],[Urea (%)]]*$P$20 -> 0 | H123: 0 | I123: 0.192 | J123: 0.063 | K123: 0 | L123: Crop Nutrition Solutions (Yara Australia)
A124: YaraVita MANGZINC | B124: L/ha | C124: 0.04 | D124: =Table[[#This Row],[Non-Urea Nitrogen]]+Table[[#This Row],[Urea]] -> 0.0351 | E124: =Table[[#This Row],[Non-Urea Nitrogen (%)]]*(AVERAGE($P$10,$P$11)) -> 0.0351 | F124: 0.117 | G124: =Table[[#This Row],[Urea (%)]]*$P$20 -> 0 | H124: 0 | I124: 0 | J124: 0 | K124: 0 | L124: Crop Nutrition Solutions (Yara Australia)
A125: YaraVita MOLYTRAC | B125: L/ha | C125: 0 | D125: =Table[[#This Row],[Non-Urea Nitrogen]]+Table[[#This Row],[Urea]] -> 0 | E125: =Table[[#This Row],[Non-Urea Nitrogen (%)]]*0 -> 0 | F125: =Table[[#This Row],[N total Nitrogen (%)]]-Table[[#This Row],[Urea]] -> 0 | G125: =Table[[#This Row],[Urea (%)]]*$P$20 -> 0 | H125: 0 | I125: 0.11 | J125: 0 | K125: 0 | L125: Crop Nutrition Solutions (Yara Australia)
A126: YaraVita SENIPHOS | B126: L/ha | C126: 0 | D126: =Table[[#This Row],[Non-Urea Nitrogen]]+Table[[#This Row],[Urea]] -> 0 | E126: =Table[[#This Row],[Non-Urea Nitrogen (%)]]*0 -> 0 | F126: =Table[[#This Row],[N total Nitrogen (%)]]-Table[[#This Row],[Urea]] -> 0 | G126: =Table[[#This Row],[Urea (%)]]*$P$20 -> 0 | H126: 0 | I126: 0.135 | J126: 0 | K126: 0 | L126: Crop Nutrition Solutions (Yara Australia)
A127: YaraVita ZINTRAC | B127: L/ha | C127: 0.018 | D127: =Table[[#This Row],[Non-Urea Nitrogen]]+Table[[#This Row],[Urea]] -> 0.0159 | E127: =Table[[#This Row],[Non-Urea Nitrogen (%)]]*(AVERAGE($P$10,$P$11)) -> 0.0159 | F127: 0.053 | G127: =Table[[#This Row],[Urea (%)]]*$P$20 -> 0 | H127: 0 | I127: 0 | J127: 0 | K127: 0 | L127: Crop Nutrition Solutions (Yara Australia)
A128: Zinc Sulphate Monohydrate | B128: T/ha | C128: 0 | D128: =Table[[#This Row],[Non-Urea Nitrogen]]+Table[[#This Row],[Urea]] -> 0 | E128: =Table[[#This Row],[Non-Urea Nitrogen (%)]]*0 -> 0 | F128: =Table[[#This Row],[N total Nitrogen (%)]]-Table[[#This Row],[Urea]] -> 0 | G128: =Table[[#This Row],[Urea (%)]]*$P$20 -> 0 | H128: 0 | I128: 0 | J128: 0 | K128: 0.172 | L128: Incitec Pivot Fertilisers
A129: Zincsol | B129: L/ha | C129: 0 | D129: =Table[[#This Row],[Non-Urea Nitrogen]]+Table[[#This Row],[Urea]] -> 0 | E129: =Table[[#This Row],[Non-Urea Nitrogen (%)]]*0 -> 0 | F129: =Table[[#This Row],[N total Nitrogen (%)]]-Table[[#This Row],[Urea]] -> 0 | G129: =Table[[#This Row],[Urea (%)]]*$P$20 -> 0 | H129: 0 | I129: 0 | J129: 0 | K129: 0.08 | L129: Sulfate Zincsol
A130: ZincStar | B130: T/ha | C130: 0.1 | D130: =Table[[#This Row],[Non-Urea Nitrogen]]+Table[[#This Row],[Urea]] -> 0.11 | E130: =Table[[#This Row],[Non-Urea Nitrogen (%)]]*$P$15 -> 0.11 | F130: 1 | G130: =Table[[#This Row],[Urea (%)]]*$P$20 -> 0 | H130: 0 | I130: 0.22 | J130: 0 | K130: 0.02 | L130: Impact fertilisers
A131: ZMC-1 | B131: L/ha | C131: 0 | D131: =Table[[#This Row],[Non-Urea Nitrogen]]+Table[[#This Row],[Urea]] -> 0 | E131: =Table[[#This Row],[Non-Urea Nitrogen (%)]]*0 -> 0 | F131: 0 | G131: =Table[[#This Row],[Urea (%)]]*$P$20 -> 0 | H131: 0 | I131: 0 | J131: 0 | K131: 0.082 | L131: Kemgro ZMC-1
A132: Zn 7000 | B132: L/ha | C132: 0.069 | D132: =Table[[#This Row],[Non-Urea Nitrogen]]+Table[[#This Row],[Urea]] -> 0.069 | E132: =Table[[#This Row],[Non-Urea Nitrogen (%)]]*0 -> 0 | F132: 0 | G132: =Table[[#This Row],[Urea (%)]]*$P$20 -> 0.069 | H132: 0.15 | I132: 0 | J132: 0 | K132: 0 | L132: Rutec Zn 7000
